[Event "RUS-ch Girls U21 2021"]
[Site "Loo"]
[Date "2021.04.29"]
[Round "9.6"]
[White "Pankova, Julia"]
[Black "Stroganova, Karina"]
[Result "1/2-1/2"]
[ECO "B01"]
[WhiteElo "1884"]
[BlackElo "1731"]
[Annotator "NA"]
[PlyCount "81"]
[EventDate "2021.04.21"]
[EventType "swiss"]
[EventCountry "RUS"]
[SourceTitle "playchess.com"]
[Source "ChessBase"]
[SourceQuality "1"]
[TimeControl "40/5400+30:1800+30"]

1. e4 {[%emt 0:00:00]} d5 {[%emt 0:00:00]} 2. exd5 {[%emt 0:00:00]} Nf6 {[%emt 0:00:00]} 3. Bb5+ {[%emt 0:00:25]} Nbd7 {[%emt 0:01:54]} 4. c4 {[%emt 0:05:01]} a6 {[%emt 0:02:44]} 5. Bxd7+ {[%emt 0:03:10]} Qxd7 {[%emt 0:10:45]} 6. d3 {[%emt 0:08:03]} b5 {[%emt 0:03:26]} 7. Qe2 {[%emt 0:06:37]} Qd6 {[%emt 0:07:47]} 8. Nf3 {[%emt 0:07:20]} bxc4 {[%emt 0:06:22]} 9. dxc4 {[%emt 0:00:09]} Qb4+ {[%emt 0:00:17]} 10. Nc3 {[%emt 0:02:08]} Bg4 {[%emt 0:00:35]} 11. O-O {[%emt 0:05:10]} Bxf3 {[%emt 0:00:26]} 12. gxf3 {[%emt 0:18:31]} c6 {[%emt 0:03:24]} 13. dxc6 {[%emt 0:02:46]} Rc8 {[%emt 0:00:15]} 14. Bf4 {[%emt 0:11:08]} Rxc6 {[%emt 0:00:41]} 15. Rad1 {[%emt 0:00:34]} Qxc4 {[%emt 0:02:46]} 16. Qd2 {[%emt 0:01:01]} Rc8 {[%emt 0:01:13]} 17. Rfe1 {[%emt 0:13:30]} Qc6 {[%emt 0:11:29]} 18. Re3 {[%emt 0:03:01]} e6 {[%emt 0:00:50]} 19. Rd3 {[%emt 0:02:48]} Be7 {[%emt 0:00:36]} 20. Bd6 {[%emt 0:01:34]} Qb7 {[%emt 0:04:29]} 21. Bxe7 {[%emt 0:03:59]} Qxe7 {[%emt 0:00:10]} 22. Qg5 {[%emt 0:01:00]} O-O {[%emt 0:01:28]} 23. Ne4 {[%emt 0:00:50]} h6 {[%emt 0:04:01]} 24. Nxf6+ {[%emt 0:00:20]} Qxf6 {[%emt 0:00:06]} 25. Qxf6 {[%emt 0:00:05]} gxf6 {[%emt 0:00:04]} 26. Rd6 {[%emt 0:01:37]} Rc2 {[%emt 0:02:09]} 27. Rxa6 {[%emt 0:00:45]} Rxb2 {[%emt 0:00:09]} 28. Rd7 {[%emt 0:01:48]} Kg7 {[%emt 0:04:46]} 29. Rxe6 {[%emt 0:00:25]} Rxa2 {[%emt 0:00:09]} 30. Ree7 {[%emt 0:00:11]} Kg6 {[%emt 0:00:57]} 31. Kg2 {[%emt 0:00:15]} Rb8 {[%emt 0:04:06]} 32. Rb7 {[%emt 0:00:57]} Rc8 {[%emt 0:01:32]} 33. Rbc7 {[%emt 0:00:17]} Rxc7 {[%emt 0:01:19]} 34. Rxc7 {[%emt 0:00:05]} h5 {[%emt 0:00:10]} 35. Rc5 {[%emt 0:01:23]} Rb2 {[%emt 0:00:16]} 36. Kg3 {[%emt 0:00:20]} f5 {[%emt 0:01:19]} 37. Rc6+ {[%emt 0:00:08]} f6 {[%emt 0:00:07]} 38. Rc4 {[%emt 0:00:12]} Rb1 {[%emt 0:00:39]} 39. Kg2 {[%emt 0:00:15]} Kg5 {[%emt 0:00:39]} 40. h4+ {[%emt 0:00:00]} Kg6 {[%emt 0:00:00]} 41. Ra4 {[%emt 0:00:19]} 1/2-1/2

[Event "RUS-ch Girls U21 2021"]
[Site "Loo"]
[Date "2021.04.29"]
[Round "9.7"]
[White "Emelyanova, Victoria"]
[Black "Garmash, Aliona"]
[Result "0-1"]
[ECO "B14"]
[WhiteElo "1765"]
[BlackElo "2120"]
[Annotator "NA"]
[PlyCount "94"]
[EventDate "2021.04.21"]
[EventType "swiss"]
[EventCountry "RUS"]
[SourceTitle "playchess.com"]
[Source "ChessBase"]
[SourceQuality "1"]
[TimeControl "40/5400+30:1800+30"]

1. c4 {[%emt 0:00:00]} c6 {[%emt 0:01:06]} 2. e4 {[%emt 0:00:00]} d5 {[%emt 0:00:04]} 3. exd5 {[%emt 0:00:00]} cxd5 {[%emt 0:00:04]} 4. d4 {[%emt 0:00:00]} Nf6 {[%emt 0:00:08]} 5. Nc3 {[%emt 0:00:00]} e6 {[%emt 0:00:44]} 6. Nf3 {[%emt 0:00:28]} Bb4 {[%emt 0:01:01]} 7. Qb3 {[%emt 0:02:41]} Nc6 {[%emt 0:01:49]} 8. Bg5 {[%emt 0:07:24]} O-O {[%emt 0:17:07]} 9. Bd3 {[%emt 0:08:29]} dxc4 {[%emt 0:02:52]} 10. Bxc4 {[%emt 0:00:13]} Be7 {[%emt 0:03:40]} 11. Qd1 {[%emt 0:08:44]} a6 {[%emt 0:06:35]} 12. O-O {[%emt 0:05:27]} b5 {[%emt 0:01:29]} 13. Bb3 {[%emt 0:01:20]} Bb7 {[%emt 0:07:18]} 14. Re1 {[%emt 0:08:59]} Na5 {[%emt 0:14:09]} 15. Bc2 {[%emt 0:03:33]} Nc4 {[%emt 0:03:42]} 16. b3 {[%emt 0:15:19]} Nb6 {[%emt 0:05:17]} 17. Qd3 {[%emt 0:02:50]} g6 {[%emt 0:00:24]} 18. Ne5 {[%emt 0:07:24]} Nbd5 {[%emt 0:08:00]} 19. Nxd5 {[%emt 0:03:35]} Nxd5 {[%emt 0:00:48]} 20. Bxe7 {[%emt 0:03:55]} Qxe7 {[%emt 0:00:04]} 21. Qg3 {[%emt 0:03:49]} Rac8 {[%emt 0:02:24]} 22. Rac1 {[%emt 0:06:22]} Rc3 {[%emt 0:00:42]} 23. Bd3 {[%emt 0:03:20]} Rfc8 {[%emt 0:01:33]} 24. Rxc3 {[%emt 0:00:17]} Rxc3 {[%emt 0:00:11]} 25. f3 {[%emt 0:02:25]} Qb4 {[%emt 0:10:41]} 26. Qh4 {[%emt 0:01:51]} f6 {[%emt 0:02:51]} 27. Bxg6 {[%emt 0:01:52]} hxg6 {[%emt 0:02:06]} 28. Nxg6 {[%emt 0:00:40]} Rc6 {[%emt 0:02:29]} 29. Qh8+ {[%emt 0:00:55]} Kf7 {[%emt 0:00:05]} 30. Qh7+ {[%emt 0:00:44]} Ke8 {[%emt 0:00:04]} 31. Rxe6+ {[%emt 0:02:05]} Rxe6 {[%emt 0:00:15]} 32. Qg8+ {[%emt 0:00:15]} Kd7 {[%emt 0:00:10]} 33. Nf8+ {[%emt 0:00:08]} Kc7 {[%emt 0:01:31]} 34. Nxe6+ {[%emt 0:00:30]} Kd6 {[%emt 0:00:14]} 35. h3 {[%emt 0:01:16]} Qe1+ {[%emt 0:00:09]} 36. Kh2 {[%emt 0:00:04]} Qxe6 {[%emt 0:00:06]} 37. Qb8+ {[%emt 0:00:56]} Kc6 {[%emt 0:00:06]} 38. Qa7 {[%emt 0:00:29]} Qd6+ {[%emt 0:00:22]} 39. g3 {[%emt 0:00:12]} Nb6 {[%emt 0:01:11]} 40. a4 {[%emt 0:00:00]} Qxd4 {[%emt 0:00:00]} 41. axb5+ {[%emt 0:00:36]} Kc7 {[%emt 0:02:02]} 42. h4 {[%emt 0:00:04]} Qf2+ {[%emt 0:00:00]} 43. Kh3 {[%emt 0:00:30]} Qf1+ {[%emt 0:00:16]} 44. Kh2 {[%emt 0:00:30]} Qxb5 {[%emt 0:00:30]} 45. Kh3 {[%emt 0:01:48]} Qf1+ {[%emt 0:00:08]} 46. Kg4 {[%emt 0:00:22]} Qxf3+ {[%emt 0:00:06]} 47. Kh3 {[%emt 0:00:06]} f5 {[%emt 0:00:06]} 0-1

[Event "RUS-ch Girls U21 2021"]
[Site "Loo"]
[Date "2021.04.29"]
[Round "9.8"]
[White "Filippova, Darya"]
[Black "Bogdanova, Darya"]
[Result "1-0"]
[ECO "A10"]
[WhiteElo "1915"]
[BlackElo "1762"]
[Annotator "NA"]
[PlyCount "85"]
[EventDate "2021.04.21"]
[EventType "swiss"]
[EventCountry "RUS"]
[SourceTitle "playchess.com"]
[Source "ChessBase"]
[SourceQuality "1"]
[TimeControl "40/5400+30:1800+30"]

1. c4 {[%emt 0:00:00]} f5 {[%emt 0:01:08]} 2. Nc3 {[%emt 0:01:13]} Nf6 {[%emt 0:00:07]} 3. d4 {[%emt 0:10:08]} g6 {[%emt 0:00:12]} 4. Bg5 {[%emt 0:01:00]} Bg7 {[%emt 0:00:15]} 5. Nf3 {[%emt 0:02:12]} d6 {[%emt 0:01:57]} 6. h4 {[%emt 0:05:42]} h6 {[%emt 0:05:39]} 7. Bxf6 {[%emt 0:01:03]} Bxf6 {[%emt 0:00:11]} 8. e4 {[%emt 0:00:08]} fxe4 {[%emt 0:16:00]} 9. Nxe4 {[%emt 0:00:10]} Bg7 {[%emt 0:01:06]} 10. Bd3 {[%emt 0:01:11]} Bf5 {[%emt 0:03:59]} 11. Ng3 {[%emt 0:00:34]} e6 {[%emt 0:01:48]} 12. h5 {[%emt 0:00:39]} Qf6 {[%emt 0:05:28]} 13. hxg6 {[%emt 0:00:28]} Bxg6 {[%emt 0:01:24]} 14. Ne4 {[%emt 0:09:03]} Qf7 {[%emt 0:04:47]} 15. Qc2 {[%emt 0:01:06]} Bf5 {[%emt 0:05:10]} 16. g4 {[%emt 0:01:35]} Bh7 {[%emt 0:01:36]} 17. Rh3 {[%emt 0:05:02]} Nc6 {[%emt 0:12:07]} 18. Nxd6+ {[%emt 0:01:36]} cxd6 {[%emt 0:00:04]} 19. Bxh7 {[%emt 0:00:09]} O-O-O {[%emt 0:00:13]} 20. Be4 {[%emt 0:03:47]} Nxd4 {[%emt 0:01:33]} 21. Nxd4 {[%emt 0:00:09]} Bxd4 {[%emt 0:00:07]} 22. Rb3 {[%emt 0:02:25]} Rd7 {[%emt 0:08:49]} 23. Rf3 {[%emt 0:00:42]} Qg7 {[%emt 0:01:07]} 24. Rd1 {[%emt 0:06:11]} Bxb2 {[%emt 0:08:53]} 25. c5 {[%emt 0:02:43]} d5 {[%emt 0:00:36]} 26. Bd3 {[%emt 0:03:10]} Rc7 {[%emt 0:02:50]} 27. Bb5 {[%emt 0:01:07]} Bd4 {[%emt 0:02:18]} 28. c6 {[%emt 0:00:49]} bxc6 {[%emt 0:01:49]} 29. Bxc6 {[%emt 0:01:03]} Qxg4 {[%emt 0:03:09]} 30. Rdd3 {[%emt 0:02:05]} Bb6 {[%emt 0:04:50]} 31. Qb2 {[%emt 0:04:58]} Rd8 {[%emt 0:01:35]} 32. Rc3 {[%emt 0:02:25]} Qd4 {[%emt 0:01:23]} 33. Qb5 {[%emt 0:00:47]} Qe5+ {[%emt 0:02:35]} 34. Kf1 {[%emt 0:00:18]} Rg8 {[%emt 0:00:28]} 35. Qb4 {[%emt 0:01:09]} Qg7 {[%emt 0:00:34]} 36. Qd6 {[%emt 0:01:00]} Ba5 {[%emt 0:00:55]} 37. Qxe6+ {[%emt 0:00:42]} Kb8 {[%emt 0:00:49]} 38. Rg3 {[%emt 0:02:11]} Bxc3 {[%emt 0:00:46]} 39. Rxg7 {[%emt 0:00:23]} Rcxg7 {[%emt 0:00:36]} 40. Qd6+ {[%emt 0:00:00]} Rc7 {[%emt 0:00:00]} 41. Qxd5 {[%emt 0:01:15]} Rg6 {[%emt 0:04:04]} 42. Qb5+ {[%emt 0:00:09]} Kc8 {[%emt 0:00:36]} 43. Qf5+ {[%emt 0:00:08]} 1-0

[Event "RUS-ch Girls U21 2021"]
[Site "Loo"]
[Date "2021.04.29"]
[Round "9.9"]
[White "Shvedova, Alexandra"]
[Black "Badmaeva, Baina"]
[Result "1-0"]
[ECO "B20"]
[WhiteElo "2000"]
[BlackElo "1751"]
[Annotator "NA"]
[PlyCount "73"]
[EventDate "2021.04.21"]
[EventType "swiss"]
[EventCountry "RUS"]
[SourceTitle "playchess.com"]
[Source "ChessBase"]
[SourceQuality "1"]
[TimeControl "40/5400+30:1800+30"]

1. e4 {[%emt 0:00:00]} c5 {[%emt 0:00:00]} 2. Ne2 {[%emt 0:00:00]} d6 {[%emt 0:00:00]} 3. g3 {[%emt 0:00:00]} g6 {[%emt 0:00:00]} 4. Bg2 {[%emt 0:00:01]} Bg7 {[%emt 0:00:00]} 5. c3 {[%emt 0:00:08]} Nf6 {[%emt 0:00:43]} 6. d4 {[%emt 0:00:08]} cxd4 {[%emt 0:00:05]} 7. cxd4 {[%emt 0:00:02]} O-O {[%emt 0:00:32]} 8. Nbc3 {[%emt 0:00:21]} Nc6 {[%emt 0:00:17]} 9. O-O {[%emt 0:00:08]} Bd7 {[%emt 0:00:41]} 10. h3 {[%emt 0:00:30]} Rc8 {[%emt 0:00:32]} 11. Be3 {[%emt 0:00:35]} Qa5 {[%emt 0:01:28]} 12. f4 {[%emt 0:05:46]} Rfd8 {[%emt 0:05:20]} 13. a3 {[%emt 0:08:44]} Qh5 {[%emt 0:05:50]} 14. g4 {[%emt 0:14:00]} Bxg4 {[%emt 0:00:37]} 15. hxg4 {[%emt 0:00:04]} Nxg4 {[%emt 0:00:06]} 16. Rf3 {[%emt 0:00:04]} Nxe3 {[%emt 0:02:48]} 17. Rxe3 {[%emt 0:00:05]} e5 {[%emt 0:00:32]} 18. d5 {[%emt 0:14:22]} Nd4 {[%emt 0:04:08]} 19. Rh3 {[%emt 0:00:45]} Nxe2+ {[%emt 0:02:30]} 20. Nxe2 {[%emt 0:00:17]} Qg4 {[%emt 0:00:05]} 21. fxe5 {[%emt 0:08:19]} Bxe5 {[%emt 0:00:50]} 22. Nc3 {[%emt 0:00:37]} Qg5 {[%emt 0:02:26]} 23. Kh1 {[%emt 0:01:54]} Rc4 {[%emt 0:00:21]} 24. Qf3 {[%emt 0:04:24]} Rdc8 {[%emt 0:01:50]} 25. Rg1 {[%emt 0:03:38]} Qd2 {[%emt 0:04:21]} 26. Bf1 {[%emt 0:01:42]} R4c7 {[%emt 0:11:40]} 27. Qh5 {[%emt 0:04:14]} Qf4 {[%emt 0:18:29]} 28. Qxh7+ {[%emt 0:02:34]} Kf8 {[%emt 0:00:04]} 29. Bg2 {[%emt 0:00:54]} Bg7 {[%emt 0:05:25]} 30. Rf1 {[%emt 0:01:36]} Qg5 {[%emt 0:00:18]} 31. Rhf3 {[%emt 0:00:40]} a6 {[%emt 0:07:51]} 32. Bh3 {[%emt 0:00:51]} Re8 {[%emt 0:00:19]} 33. Rg1 {[%emt 0:07:38]} Qh5 {[%emt 0:00:52]} 34. Qxh5 {[%emt 0:00:14]} gxh5 {[%emt 0:00:05]} 35. Bf5 {[%emt 0:00:57]} h4 {[%emt 0:02:51]} 36. Rg4 {[%emt 0:00:25]} Ke7 {[%emt 0:00:50]} 37. Rxg7 {[%emt 0:00:11]} 1-0

[Event "RUS-ch Girls U21 2021"]
[Site "Loo"]
[Date "2021.04.29"]
[Round "9.10"]
[White "Gelman, Inna"]
[Black "Koroleva, Evgeniya"]
[Result "0-1"]
[ECO "A00"]
[WhiteElo "1801"]
[BlackElo "1884"]
[Annotator "NA"]
[PlyCount "128"]
[EventDate "2021.04.21"]
[EventType "swiss"]
[EventCountry "RUS"]
[SourceTitle "playchess.com"]
[Source "ChessBase"]
[SourceQuality "1"]
[TimeControl "40/5400+30:1800+30"]

1. g4 {[%emt 0:00:00]} d5 {[%emt 0:00:24]} 2. Bg2 {[%emt 0:00:00]} c6 {[%emt 0:00:03]} 3. h3 {[%emt 0:00:00]} e5 {[%emt 0:00:14]} 4. d3 {[%emt 0:00:00]} Be7 {[%emt 0:00:50]} 5. Nc3 {[%emt 0:01:52]} h5 {[%emt 0:00:41]} 6. gxh5 {[%emt 0:00:49]} Nf6 {[%emt 0:00:21]} 7. Nf3 {[%emt 0:02:54]} Nbd7 {[%emt 0:02:04]} 8. e4 {[%emt 0:00:35]} d4 {[%emt 0:00:07]} 9. Ne2 {[%emt 0:00:09]} Nxh5 {[%emt 0:00:07]} 10. c3 {[%emt 0:02:18]} c5 {[%emt 0:00:07]} 11. Ng3 {[%emt 0:04:03]} g6 {[%emt 0:00:30]} 12. Qe2 {[%emt 0:02:44]} Rb8 {[%emt 0:01:09]} 13. a4 {[%emt 0:03:39]} b6 {[%emt 0:00:25]} 14. h4 {[%emt 0:01:58]} Qc7 {[%emt 0:02:21]} 15. c4 {[%emt 0:01:22]} a6 {[%emt 0:00:10]} 16. Bh3 {[%emt 0:06:44]} Nf8 {[%emt 0:01:26]} 17. Bxc8 {[%emt 0:09:27]} Rxc8 {[%emt 0:00:06]} 18. Ng5 {[%emt 0:02:19]} Nf4 {[%emt 0:05:22]} 19. Qf3 {[%emt 0:03:56]} Bxg5 {[%emt 0:00:26]} 20. hxg5 {[%emt 0:00:08]} Rxh1+ {[%emt 0:00:04]} 21. Nxh1 {[%emt 0:00:10]} N8e6 {[%emt 0:00:14]} 22. Bxf4 {[%emt 0:01:19]} exf4 {[%emt 0:01:03]} 23. Qg4 {[%emt 0:01:26]} Qe5 {[%emt 0:00:13]} 24. f3 {[%emt 0:00:44]} Qxg5 {[%emt 0:02:23]} 25. Nf2 {[%emt 0:00:09]} Ke7 {[%emt 0:06:03]} 26. Ke2 {[%emt 0:00:39]} Rh8 {[%emt 0:04:52]} 27. Rg1 {[%emt 0:02:12]} Qe5 {[%emt 0:01:31]} 28. Qg2 {[%emt 0:09:13]} Qb8 {[%emt 0:00:19]} 29. b3 {[%emt 0:02:03]} b5 {[%emt 0:00:50]} 30. axb5 {[%emt 0:00:30]} axb5 {[%emt 0:00:04]} 31. Ng4 {[%emt 0:00:45]} bxc4 {[%emt 0:01:11]} 32. bxc4 {[%emt 0:00:06]} Qb2+ {[%emt 0:01:01]} 33. Kf1 {[%emt 0:02:39]} Qc1+ {[%emt 0:01:11]} 34. Ke2 {[%emt 0:01:04]} Qc2+ {[%emt 0:00:11]} 35. Ke1 {[%emt 0:00:28]} Qb1+ {[%emt 0:01:51]} 36. Ke2 {[%emt 0:02:12]} Qb3 {[%emt 0:01:36]} 37. Rd1 {[%emt 0:02:53]} Ra8 {[%emt 0:04:04]} 38. Qf1 {[%emt 0:00:53]} f5 {[%emt 0:09:46]} 39. exf5 {[%emt 0:04:04]} gxf5 {[%emt 0:00:06]} 40. Nh6 {[%emt 0:00:00]} Ng7 {[%emt 0:00:00]} 41. Rd2 {[%emt 0:08:30]} Qc3 {[%emt 0:22:46]} 42. Qe1 {[%emt 0:01:05]} Kd7 {[%emt 0:01:27]} 43. Qb1 {[%emt 0:02:43]} Re8+ {[%emt 0:03:08]} 44. Kd1 {[%emt 0:02:00]} Kc7 {[%emt 0:00:16]} 45. Qa2 {[%emt 0:00:50]} Qb4 {[%emt 0:06:58]} 46. Qa7+ {[%emt 0:00:52]} Kc6 {[%emt 0:00:08]} 47. Qa6+ {[%emt 0:01:42]} Qb6 {[%emt 0:00:08]} 48. Qxb6+ {[%emt 0:00:57]} Kxb6 {[%emt 0:00:05]} 49. Rg2 {[%emt 0:00:05]} Re7 {[%emt 0:00:47]} 50. Kd2 {[%emt 0:00:32]} Ka5 {[%emt 0:00:44]} 51. Rg6 {[%emt 0:04:04]} Rb7 {[%emt 0:03:45]} 52. Rc6 {[%emt 0:01:13]} Rb2+ {[%emt 0:00:44]} 53. Ke1 {[%emt 0:00:23]} Rh2 {[%emt 0:00:15]} 54. Nxf5 {[%emt 0:00:27]} Nxf5 {[%emt 0:01:02]} 55. Rxc5+ {[%emt 0:00:05]} Kb4 {[%emt 0:00:05]} 56. Rxf5 {[%emt 0:00:09]} Kc3 {[%emt 0:00:12]} 57. Rxf4 {[%emt 0:00:49]} Kxd3 {[%emt 0:00:05]} 58. c5 {[%emt 0:00:54]} Kc3 {[%emt 0:00:40]} 59. Rf7 {[%emt 0:04:09]} d3 {[%emt 0:00:19]} 60. Rd7 {[%emt 0:00:16]} d2+ {[%emt 0:02:31]} 61. Kd1 {[%emt 0:00:24]} Rh1+ {[%emt 0:00:09]} 62. Ke2 {[%emt 0:00:06]} Re1+ {[%emt 0:00:11]} 63. Kf2 {[%emt 0:00:43]} d1=Q {[%emt 0:00:08]} 64. Rxd1 {[%emt 0:02:36]} Rxd1 {[%emt 0:00:05]} 0-1